[Event "Live Chess"]
[Site "Chess.com"]
[Date "2023.05.21"]
[Round "-"]
[White "ConorMaclaud"]
[Black "LL220284LL"]
[Result "0-1"]
[WhiteElo "2117"]
[BlackElo "2242"]
[TimeControl "300"]
[EndTime "8:52:10 PDT"]
[Termination "LL220284LL won by resignation"]

1. Nf3 {[%clk 0:04:59.2]} 1... d5 {[%clk 0:04:59]} 2. e3 {[%clk 0:04:57.4]} 2...
e6 {[%clk 0:04:57.3]} 3. d4 {[%clk 0:04:57.3]} 3... Nf6 {[%clk 0:04:55.9]} 4. c4
{[%clk 0:04:57.2]} 4... Be7 {[%clk 0:04:53.5]} 5. Nc3 {[%clk 0:04:56.5]} 5...
O-O {[%clk 0:04:52.4]} 6. Bd3 {[%clk 0:04:54.9]} 6... dxc4 {[%clk 0:04:51.3]} 7.
Bxc4 {[%clk 0:04:53.7]} 7... b6 {[%clk 0:04:51.1]} 8. O-O {[%clk 0:04:52.9]}
8... Bb7 {[%clk 0:04:51]} 9. Re1 {[%clk 0:04:51.7]} 9... Nbd7 {[%clk 0:04:49.9]}
10. e4 {[%clk 0:04:49.7]} 10... c5 {[%clk 0:04:42.8]} 11. d5 {[%clk 0:04:48.6]}
11... exd5 {[%clk 0:04:41.9]} 12. exd5 {[%clk 0:04:34.7]} 12... Bd6 {[%clk
0:04:31.8]} 13. Bg5 {[%clk 0:04:33.8]} 13... h6 {[%clk 0:04:30.5]} 14. Bh4
{[%clk 0:04:32.9]} 14... a6 {[%clk 0:04:29]} 15. Ne4 {[%clk 0:04:27.8]} 15... g5
{[%clk 0:04:27]} 16. Nxd6 {[%clk 0:04:25.4]} 16... gxh4 {[%clk 0:04:24.5]} 17.
Nxb7 {[%clk 0:04:08.8]} 17... Qc7 {[%clk 0:04:22.3]} 18. Qd2 {[%clk 0:03:30.9]}
18... Qxb7 {[%clk 0:04:13.1]} 19. Qxh6 {[%clk 0:03:28.4]} 19... Rfe8 {[%clk
0:04:08.7]} 20. Nxh4 {[%clk 0:03:16.7]} 20... Rxe1+ {[%clk 0:04:03.6]} 21. Rxe1
{[%clk 0:03:15.1]} 21... Re8 {[%clk 0:04:03.5]} 22. Rf1 {[%clk 0:02:47.9]} 22...
Re5 {[%clk 0:03:52]} 23. f4 {[%clk 0:02:36.6]} 23... Rh5 {[%clk 0:03:32.8]} 24.
Qxh5 {[%clk 0:02:11.7]} 24... Nxh5 {[%clk 0:03:31.5]} 25. Nf5 {[%clk 0:02:11]}
25... b5 {[%clk 0:03:27.4]} 26. Bd3 {[%clk 0:01:49.8]} 26... c4 {[%clk
0:03:24.6]} 27. Bc2 {[%clk 0:01:46]} 27... Kf8 {[%clk 0:03:22.8]} 28. d6 {[%clk
0:01:41.4]} 28... Ng7 {[%clk 0:03:19.3]} 29. Ne7 {[%clk 0:01:33.4]} 29... Qb6+
{[%clk 0:03:17.4]} 30. Kh1 {[%clk 0:01:29.2]} 30... Qxd6 {[%clk 0:03:16.7]} 31.
Re1 {[%clk 0:01:25.8]} 31... Ne6 {[%clk 0:03:14.9]} 32. f5 {[%clk 0:01:22]}
32... Qd2 {[%clk 0:03:12.6]} 0-1

[Event "Live Chess"]
[Site "Chess.com"]
[Date "2023.05.21"]
[Round "-"]
[White "HoarseyHorsey"]
[Black "OleksiyJr1"]
[Result "1-0"]
[WhiteElo "1468"]
[BlackElo "1043"]
[TimeControl "300"]
[EndTime "8:52:11 PDT"]
[Termination "HoarseyHorsey won by resignation"]

1. d4 {[%clk 0:04:58.9]} 1... Nf6 {[%clk 0:04:58.1]} 2. c4 {[%clk 0:04:58.1]}
2... c6 {[%clk 0:04:57.6]} 3. Nc3 {[%clk 0:04:55.6]} 3... d6 {[%clk 0:04:55.7]}
4. Bf4 {[%clk 0:04:52.2]} 4... d5 {[%clk 0:04:55.6]} 5. cxd5 {[%clk 0:04:50.9]}
5... cxd5 {[%clk 0:04:54.9]} 6. e3 {[%clk 0:04:50.2]} 6... e5 {[%clk 0:04:53.8]}
7. dxe5 {[%clk 0:04:48.8]} 7... d4 {[%clk 0:04:53.1]} 8. exd4 {[%clk 0:04:47.3]}
8... Ne4 {[%clk 0:04:52.7]} 9. Nxe4 {[%clk 0:04:46]} 9... Qd5 {[%clk 0:04:52.6]}
10. Bd3 {[%clk 0:04:40]} 10... Qxe4+ {[%clk 0:04:52.5]} 11. Bxe4 {[%clk
0:04:38.9]} 11... Bg4 {[%clk 0:04:52]} 1-0

[Event "Live Chess"]
[Site "Chess.com"]
[Date "2023.05.21"]
[Round "-"]
[White "Man-Del-Brot"]
[Black "peter-785"]
[Result "1-0"]
[WhiteElo "1095"]
[BlackElo "1159"]
[TimeControl "300"]
[EndTime "8:52:15 PDT"]
[Termination "Man-Del-Brot won by checkmate"]

1. d4 {[%clk 0:04:56.3]} 1... d5 {[%clk 0:04:58.1]} 2. Nf3 {[%clk 0:04:55.1]}
2... c6 {[%clk 0:04:57.7]} 3. Bf4 {[%clk 0:04:53.1]} 3... e6 {[%clk 0:04:57.2]}
4. e3 {[%clk 0:04:52.3]} 4... Nf6 {[%clk 0:04:56.8]} 5. Nbd2 {[%clk 0:04:51.3]}
5... Be7 {[%clk 0:04:56]} 6. c3 {[%clk 0:04:49.8]} 6... c5 {[%clk 0:04:55.2]} 7.
h3 {[%clk 0:04:48]} 7... cxd4 {[%clk 0:04:51.3]} 8. exd4 {[%clk 0:04:45.7]} 8...
O-O {[%clk 0:04:48.5]} 9. Bd3 {[%clk 0:04:44.4]} 9... Qb6 {[%clk 0:04:33.4]} 10.
Qc2 {[%clk 0:04:37.3]} 10... g6 {[%clk 0:04:23.3]} 11. O-O {[%clk 0:04:34.8]}
11... Re8 {[%clk 0:04:17.3]} 12. Rfe1 {[%clk 0:04:30.9]} 12... Bf8 {[%clk
0:04:15]} 13. c4 {[%clk 0:04:08.9]} 13... Qc6 {[%clk 0:03:27.2]} 14. Ne5 {[%clk
0:04:01.9]} 14... Qc7 {[%clk 0:02:59.5]} 15. Nxg6 {[%clk 0:03:53.2]} 15... Qc6
{[%clk 0:02:44.2]} 16. Ne5 {[%clk 0:03:48.6]} 16... Qb6 {[%clk 0:02:39.8]} 17.
c5 {[%clk 0:03:42.1]} 17... Qb4 {[%clk 0:02:28.2]} 18. Nb3 {[%clk 0:03:19.6]}
18... Nc6 {[%clk 0:02:21.7]} 19. a3 {[%clk 0:03:18.1]} 19... Qa4 {[%clk
0:02:18.5]} 20. Re3 {[%clk 0:02:59.1]} 20... Nxd4 {[%clk 0:02:16.1]} 21. Nxd4
{[%clk 0:02:49.9]} 21... Qxd4 {[%clk 0:02:10.3]} 22. Rd1 {[%clk 0:02:41.2]}
22... Qxc5 {[%clk 0:02:05.8]} 23. Bxh7+ {[%clk 0:02:14.7]} 23... Nxh7 {[%clk
0:02:02.4]} 24. Rg3+ {[%clk 0:02:05.1]} 24... Kh8 {[%clk 0:02:01]} 25. Nxf7#
{[%clk 0:02:01.9]} 1-0

[Event "Live Chess"]
[Site "Chess.com"]
[Date "2023.05.21"]
[Round "-"]
[White "Ra2orLeaf"]
[Black "MartinWalker4"]
[Result "0-1"]
[WhiteElo "1137"]
[BlackElo "2095"]
[TimeControl "300"]
[EndTime "8:52:39 PDT"]
[Termination "MartinWalker4 won by checkmate"]

1. d4 {[%clk 0:04:57.9]} 1... Nf6 {[%clk 0:04:58]} 2. Nf3 {[%clk 0:04:57.2]}
2... g6 {[%clk 0:04:56]} 3. c4 {[%clk 0:04:55.3]} 3... Bg7 {[%clk 0:04:53.9]} 4.
Nc3 {[%clk 0:04:54.8]} 4... d5 {[%clk 0:04:52.4]} 5. Bf4 {[%clk 0:04:52.4]} 5...
O-O {[%clk 0:04:39.5]} 6. e3 {[%clk 0:04:50.4]} 6... c5 {[%clk 0:04:37.6]} 7.
Be2 {[%clk 0:04:48.8]} 7... cxd4 {[%clk 0:04:33.1]} 8. Nxd4 {[%clk 0:04:39.8]}
8... Nc6 {[%clk 0:04:31.4]} 9. Nxc6 {[%clk 0:04:23.7]} 9... bxc6 {[%clk
0:04:29.3]} 10. cxd5 {[%clk 0:04:23.3]} 10... Nxd5 {[%clk 0:04:25.1]} 11. Nxd5
{[%clk 0:04:21.7]} 11... cxd5 {[%clk 0:04:23.8]} 12. Qd2 {[%clk 0:04:06.7]}
12... Qb6 {[%clk 0:04:08.3]} 13. Rb1 {[%clk 0:03:55]} 13... Bf5 {[%clk 0:04:06]}
14. Rd1 {[%clk 0:03:25.6]} 14... Bxb2 {[%clk 0:03:43.4]} 15. Qxd5 {[%clk
0:03:17]} 15... Bc3+ {[%clk 0:03:41.6]} 16. Kf1 {[%clk 0:03:13.1]} 16... Rad8
{[%clk 0:03:36.8]} 17. Qb3 {[%clk 0:03:03.3]} 17... Rxd1+ {[%clk 0:03:31.7]} 18.
Bxd1 {[%clk 0:02:56.5]} 18... Rd8 {[%clk 0:03:07.2]} 19. g4 {[%clk 0:02:49.2]}
19... Qc6 {[%clk 0:02:48.9]} 20. f3 {[%clk 0:02:24.4]} 20... Bxg4 {[%clk
0:02:28.1]} 21. Kf2 {[%clk 0:01:57.2]} 21... Be6 {[%clk 0:02:26.2]} 22. Qc2
{[%clk 0:01:48.7]} 22... Rd2+ {[%clk 0:02:16.5]} 23. Qxd2 {[%clk 0:01:42]} 23...
Bxd2 {[%clk 0:02:15.2]} 24. Be2 {[%clk 0:01:40.9]} 24... Bxa2 {[%clk 0:02:06.6]}
25. Rd1 {[%clk 0:01:39.1]} 25... Qc2 {[%clk 0:02:03.9]} 26. h4 {[%clk
0:01:23.7]} 26... Bc4 {[%clk 0:02:02]} 27. e4 {[%clk 0:00:32.1]} 27... Bxf4
{[%clk 0:01:55.1]} 28. Rd8+ {[%clk 0:00:26.2]} 28... Kg7 {[%clk 0:01:53.2]} 29.
Rc8 {[%clk 0:00:19.7]} 29... Qxe2+ {[%clk 0:01:49.7]} 30. Kg1 {[%clk 0:00:19.6]}
30... Qf1# {[%clk 0:01:48.6]} 0-1

[Event "Live Chess"]
[Site "Chess.com"]
[Date "2023.05.21"]
[Round "-"]
[White "Ninifu"]
[Black "Hacker_2009"]
[Result "1-0"]
[WhiteElo "2023"]
[BlackElo "1941"]
[TimeControl "300"]
[EndTime "8:52:52 PDT"]
[Termination "Ninifu won by checkmate"]

1. d4 {[%clk 0:04:58.1]} 1... Nf6 {[%clk 0:04:58.2]} 2. c4 {[%clk 0:04:57]} 2...
e6 {[%clk 0:04:56.9]} 3. Nc3 {[%clk 0:04:54.2]} 3... d5 {[%clk 0:04:54.9]} 4.
cxd5 {[%clk 0:04:51.5]} 4... Nxd5 {[%clk 0:04:53.4]} 5. e4 {[%clk 0:04:49.8]}
5... Nxc3 {[%clk 0:04:51.4]} 6. bxc3 {[%clk 0:04:49.2]} 6... c5 {[%clk 0:04:51]}
7. Nf3 {[%clk 0:04:44.6]} 7... Nc6 {[%clk 0:04:49.2]} 8. Bc4 {[%clk 0:04:35.4]}
8... cxd4 {[%clk 0:04:47.4]} 9. cxd4 {[%clk 0:04:34.4]} 9... Bb4+ {[%clk
0:04:45.6]} 10. Bd2 {[%clk 0:04:30.9]} 10... Bxd2+ {[%clk 0:04:45.2]} 11. Qxd2
{[%clk 0:04:30.2]} 11... O-O {[%clk 0:04:44.8]} 12. O-O {[%clk 0:04:21.9]} 12...
a6 {[%clk 0:04:40.2]} 13. d5 {[%clk 0:04:20.4]} 13... exd5 {[%clk 0:04:36.3]}
14. Bxd5 {[%clk 0:04:17.4]} 14... Be6 {[%clk 0:04:26.6]} 15. Bxe6 {[%clk
0:04:01.2]} 15... fxe6 {[%clk 0:04:18.2]} 16. Qxd8 {[%clk 0:03:59.2]} 16...
Rfxd8 {[%clk 0:04:15.4]} 17. Rfd1 {[%clk 0:03:55.1]} 17... Rac8 {[%clk
0:04:14.2]} 18. Rac1 {[%clk 0:03:52.1]} 18... Nb4 {[%clk 0:04:10.1]} 19. a3
{[%clk 0:03:41.4]} 19... Nc6 {[%clk 0:04:09.1]} 20. Ng5 {[%clk 0:03:27.9]} 20...
e5 {[%clk 0:03:56.4]} 21. Ne6 {[%clk 0:03:18.9]} 21... Rxd1+ {[%clk 0:03:54.3]}
22. Rxd1 {[%clk 0:03:17.7]} 22... Nd4 {[%clk 0:03:53.2]} 23. Nxd4 {[%clk
0:03:04.8]} 23... exd4 {[%clk 0:03:53.1]} 24. g3 {[%clk 0:03:03.9]} 24... Rc3
{[%clk 0:03:51.8]} 25. Rxd4 {[%clk 0:02:44.3]} 25... Rxa3 {[%clk 0:03:47]} 26.
Rd7 {[%clk 0:02:41]} 26... Rb3 {[%clk 0:03:44.6]} 27. e5 {[%clk 0:02:37.7]}
27... a5 {[%clk 0:03:38.3]} 28. f4 {[%clk 0:02:36.8]} 28... a4 {[%clk
0:03:36.8]} 29. f5 {[%clk 0:02:34.1]} 29... a3 {[%clk 0:03:34.3]} 30. e6 {[%clk
0:02:32.8]} 30... a2 {[%clk 0:03:32.4]} 31. Rd8# {[%clk 0:02:31.5]} 1-0

[Event "Live Chess"]
[Site "Chess.com"]
[Date "2023.05.21"]
[Round "-"]
[White "Conradical12"]
[Black "bedsdrout"]
[Result "1-0"]
[WhiteElo "1522"]
[BlackElo "1876"]
[TimeControl "300"]
[EndTime "8:52:54 PDT"]
[Termination "Conradical12 won on time"]

1. e4 {[%clk 0:04:59.1]} 1... e6 {[%clk 0:04:58]} 2. Nf3 {[%clk 0:04:58.2]} 2...
d5 {[%clk 0:04:52.6]} 3. exd5 {[%clk 0:04:57.1]} 3... Nf6 {[%clk 0:04:50.5]} 4.
dxe6 {[%clk 0:04:55.1]} 4... Bxe6 {[%clk 0:04:42.6]} 5. Nc3 {[%clk 0:04:54.6]}
5... Nc6 {[%clk 0:04:40.7]} 6. Bd3 {[%clk 0:04:54]} 6... Nb4 {[%clk 0:04:38.1]}
7. O-O {[%clk 0:04:53]} 7... Nxd3 {[%clk 0:04:16.5]} 8. cxd3 {[%clk 0:04:51.8]}
8... Qd6 {[%clk 0:04:07.3]} 9. Qc2 {[%clk 0:04:49.3]} 9... Ng4 {[%clk
0:04:02.5]} 10. g3 {[%clk 0:04:47.3]} 10... c6 {[%clk 0:03:53]} 11. Ne4 {[%clk
0:04:46.5]} 11... Qd7 {[%clk 0:03:31.9]} 12. Nc5 {[%clk 0:04:38.1]} 12... Qd6
{[%clk 0:03:29.3]} 13. Nxb7 {[%clk 0:04:34.8]} 13... Qc7 {[%clk 0:03:21.5]} 14.
Nc5 {[%clk 0:04:31.9]} 14... Bxc5 {[%clk 0:03:17.9]} 15. Qxc5 {[%clk 0:04:28.7]}
15... Qb6 {[%clk 0:03:02.5]} 16. Qxb6 {[%clk 0:04:23.8]} 16... axb6 {[%clk
0:03:00.9]} 17. Nd4 {[%clk 0:04:23.2]} 17... Ne5 {[%clk 0:02:57.2]} 18. f4
{[%clk 0:04:21.2]} 18... Nxd3 {[%clk 0:02:55.2]} 19. Nxc6 {[%clk 0:04:16.2]}
19... Rxa2 {[%clk 0:02:48.9]} 20. Rxa2 {[%clk 0:04:09.7]} 20... Bxa2 {[%clk
0:02:43.7]} 21. b4 {[%clk 0:04:06.8]} 21... Bd5 {[%clk 0:02:39]} 22. b5 {[%clk
0:04:04.9]} 22... Kd7 {[%clk 0:02:36.8]} 23. Ne5+ {[%clk 0:04:00.2]} 23... Nxe5
{[%clk 0:02:34]} 24. fxe5 {[%clk 0:03:59.7]} 24... Rc8 {[%clk 0:02:31.3]} 25.
Bb2 {[%clk 0:03:58.7]} 25... Rc2 {[%clk 0:02:29]} 26. Bc3 {[%clk 0:03:57.5]}
26... Ke6 {[%clk 0:02:26.2]} 27. Ra1 {[%clk 0:03:51.3]} 27... Bc4 {[%clk
0:02:22.2]} 28. Ra6 {[%clk 0:03:48.8]} 28... Kd5 {[%clk 0:02:18.4]} 29. Rxb6
{[%clk 0:03:42.6]} 29... h5 {[%clk 0:02:15.4]} 30. Rd6+ {[%clk 0:03:24.3]} 30...
Kc5 {[%clk 0:02:12.2]} 31. Rc6+ {[%clk 0:03:15.9]} 31... Kxb5 {[%clk 0:02:09.9]}
32. Rc7 {[%clk 0:03:14.8]} 32... Be6 {[%clk 0:02:03.9]} 33. Rb7+ {[%clk
0:03:09.2]} 33... Kc6 {[%clk 0:02:01.6]} 34. Rb4 {[%clk 0:03:08.5]} 34... g6
{[%clk 0:01:59]} 35. Rh4 {[%clk 0:03:07]} 35... Bg4 {[%clk 0:01:53]} 36. h3
{[%clk 0:03:02.9]} 36... Be6 {[%clk 0:01:49.1]} 37. Kf2 {[%clk 0:02:57.7]} 37...
Ra2 {[%clk 0:01:43.8]} 38. Ke3 {[%clk 0:02:54.2]} 38... Ra3 {[%clk 0:01:41]} 39.
Kf4 {[%clk 0:02:51.1]} 39... Kd5 {[%clk 0:01:38.1]} 40. g4 {[%clk 0:02:49.6]}
40... Ra4+ {[%clk 0:01:35.9]} 41. Kg5 {[%clk 0:02:45.8]} 41... hxg4 {[%clk
0:01:34.3]} 42. hxg4 {[%clk 0:02:44.7]} 42... Rc4 {[%clk 0:01:31.5]} 43. Ba1
{[%clk 0:02:21.7]} 43... Bd7 {[%clk 0:01:28.1]} 44. Kf6 {[%clk 0:02:19]} 44...
Ra4 {[%clk 0:01:25.6]} 45. Bc3 {[%clk 0:02:16.5]} 45... Rf4+ {[%clk 0:01:21]}
46. Ke7 {[%clk 0:02:13.7]} 46... g5 {[%clk 0:01:18.5]} 47. Rh7 {[%clk
0:02:04.8]} 47... Bxg4 {[%clk 0:01:09]} 48. Rxf7 {[%clk 0:02:02.9]} 48... Rxf7+
{[%clk 0:01:06.4]} 49. Kxf7 {[%clk 0:02:01.9]} 49... Be6+ {[%clk 0:01:03.9]} 50.
Kg6 {[%clk 0:01:59.8]} 50... g4 {[%clk 0:01:01.9]} 51. Kf6 {[%clk 0:01:44.4]}
51... g3 {[%clk 0:00:40.2]} 52. Ba5 {[%clk 0:01:34.7]} 52... g2 {[%clk
0:00:36.4]} 53. Bb6 {[%clk 0:01:32.9]} 53... Bh3 {[%clk 0:00:31.5]} 54. Bg1
{[%clk 0:01:31.8]} 54... Be6 {[%clk 0:00:26.1]} 55. d4 {[%clk 0:01:27.9]} 55...
Bg4 {[%clk 0:00:24.1]} 56. Kg5 {[%clk 0:01:22.3]} 56... Bd1 {[%clk 0:00:21]} 57.
Kf4 {[%clk 0:01:20.5]} 57... Bc2 {[%clk 0:00:18.4]} 58. Kg5 {[%clk 0:01:16.9]}
58... Be4 {[%clk 0:00:13.9]} 59. Kf6 {[%clk 0:01:14.8]} 59... Kc6 {[%clk
0:00:11.6]} 60. e6 {[%clk 0:01:11.8]} 60... Kd6 {[%clk 0:00:09.8]} 61. e7 {[%clk
0:01:10.6]} 61... Bc6 {[%clk 0:00:07]} 62. Kf7 {[%clk 0:01:05.5]} 62... Ba4
{[%clk 0:00:05.1]} 63. e8=Q {[%clk 0:01:04.1]} 63... Bxe8+ {[%clk 0:00:03.1]}
64. Kxe8 {[%clk 0:01:04]} 64... Kd5 {[%clk 0:00:01.4]} 65. Kf8 {[%clk
0:01:03.1]} 1-0

[Event "Live Chess"]
[Site "Chess.com"]
[Date "2023.05.21"]
[Round "-"]
[White "SavagePawn7"]
[Black "JoshMcK"]
[Result "1-0"]
[WhiteElo "791"]
[BlackElo "1559"]
[TimeControl "300"]
[EndTime "8:53:07 PDT"]
[Termination "SavagePawn7 won by resignation"]

1. e4 {[%clk 0:04:56.9]} 1... c6 {[%clk 0:04:58.6]} 2. d4 {[%clk 0:04:54.8]}
2... d5 {[%clk 0:04:58.5]} 3. Nc3 {[%clk 0:04:52.4]} 3... dxe4 {[%clk 0:04:57]}
4. Bc4 {[%clk 0:04:48.6]} 4... Nf6 {[%clk 0:04:53.7]} 5. f3 {[%clk 0:04:46.9]}
5... exf3 {[%clk 0:04:52.6]} 6. Nxf3 {[%clk 0:04:45.7]} 6... Bg4 {[%clk
0:04:50.3]} 7. Ne5 {[%clk 0:04:44.2]} 7... Be6 {[%clk 0:04:47.4]} 8. Bxe6 {[%clk
0:04:42.2]} 8... fxe6 {[%clk 0:04:47.3]} 9. O-O {[%clk 0:04:37.6]} 9... Nbd7
{[%clk 0:04:42.4]} 10. Nxd7 {[%clk 0:04:28.8]} 10... Qxd7 {[%clk 0:04:42.3]} 11.
Qe1 {[%clk 0:04:19.7]} 11... Qxd4+ {[%clk 0:04:36.8]} 12. Be3 {[%clk 0:04:13.8]}
12... Qb4 {[%clk 0:04:26.7]} 13. Nd5 {[%clk 0:04:04]} 13... Qxe1 {[%clk
0:04:23.9]} 14. Nc7+ {[%clk 0:03:51.9]} 14... Kd7 {[%clk 0:04:19.6]} 15. Rfxe1
{[%clk 0:03:50.9]} 15... Kxc7 {[%clk 0:04:18.1]} 16. Bf4+ {[%clk 0:03:47.4]}
16... Kc8 {[%clk 0:04:15.9]} 17. Rad1 {[%clk 0:03:45.8]} 17... Nd5 {[%clk
0:04:13.2]} 18. Bg3 {[%clk 0:03:43.2]} 18... g6 {[%clk 0:04:10.4]} 19. Rxe6
{[%clk 0:03:40.8]} 19... Bg7 {[%clk 0:04:06.4]} 20. c4 {[%clk 0:03:29.1]} 20...
Nb6 {[%clk 0:04:01]} 21. Rxe7 {[%clk 0:03:25.1]} 21... Nxc4 {[%clk 0:03:22.6]}
22. Rxg7 {[%clk 0:03:06]} 22... Ne3 {[%clk 0:03:01.3]} 23. Rdd7 {[%clk
0:02:59.3]} 23... Nd5 {[%clk 0:02:56.7]} 24. Rxh7 {[%clk 0:02:45.6]} 24... Rg8
{[%clk 0:02:46.3]} 25. Rdg7 {[%clk 0:02:36.9]} 25... Re8 {[%clk 0:02:38.1]} 26.
Rxg6 {[%clk 0:02:28.5]} 26... Ne3 {[%clk 0:02:31.3]} 27. Rhg7 {[%clk 0:02:23.6]}
27... Nf5 {[%clk 0:02:28.5]} 28. Rg8 {[%clk 0:02:19.3]} 28... Kd8 {[%clk
0:02:26.2]} 29. Rxe8+ {[%clk 0:02:12]} 29... Kxe8 {[%clk 0:02:22.9]} 30. Rg8+
{[%clk 0:02:10.4]} 30... Kf7 {[%clk 0:02:22.3]} 31. Rxa8 {[%clk 0:02:09]} 31...
Nxg3 {[%clk 0:02:22.2]} 32. hxg3 {[%clk 0:02:07.6]} 1-0

[Event "Live Chess"]
[Site "Chess.com"]
[Date "2023.05.21"]
[Round "-"]
[White "zdanevych"]
[Black "educatedlad"]
[Result "0-1"]
[WhiteElo "1470"]
[BlackElo "1619"]
[TimeControl "300"]
[EndTime "8:53:08 PDT"]
[Termination "educatedlad won on time"]

1. d4 {[%clk 0:04:59.2]} 1... f6 {[%clk 0:04:59]} 2. c4 {[%clk 0:04:57.7]} 2...
a6 {[%clk 0:04:57.3]} 3. Nc3 {[%clk 0:04:29.3]} 3... e6 {[%clk 0:04:44.3]} 4. a3
{[%clk 0:04:27.1]} 4... Bd6 {[%clk 0:04:42.1]} 5. e4 {[%clk 0:04:24]} 5... e5
{[%clk 0:04:38.6]} 6. dxe5 {[%clk 0:04:16.4]} 6... Bxe5 {[%clk 0:04:37.4]} 7.
Nf3 {[%clk 0:04:12.1]} 7... Nc6 {[%clk 0:04:33.7]} 8. Nxe5 {[%clk 0:04:03.7]}
8... Nxe5 {[%clk 0:04:33.6]} 9. Bf4 {[%clk 0:04:03]} 9... Ne7 {[%clk 0:04:29.8]}
10. Nd5 {[%clk 0:03:46.5]} 10... Nxd5 {[%clk 0:04:25.1]} 11. cxd5 {[%clk
0:03:46.4]} 11... O-O {[%clk 0:04:23.9]} 12. Be2 {[%clk 0:03:42.2]} 12... d6
{[%clk 0:04:15.1]} 13. O-O {[%clk 0:03:37.3]} 13... Qe8 {[%clk 0:04:00.8]} 14.
h3 {[%clk 0:03:32.6]} 14... Qg6 {[%clk 0:03:58.5]} 15. Kh2 {[%clk 0:03:29]}
15... Qxe4 {[%clk 0:03:52.8]} 16. Be3 {[%clk 0:03:15.9]} 16... f5 {[%clk
0:03:42.8]} 17. Qb3 {[%clk 0:02:51.9]} 17... b5 {[%clk 0:03:35.2]} 18. Rad1
{[%clk 0:02:45.6]} 18... f4 {[%clk 0:03:30.3]} 19. Rd4 {[%clk 0:02:32.1]} 19...
Qf5 {[%clk 0:03:24.6]} 20. Rxf4 {[%clk 0:02:26.8]} 20... Qg6 {[%clk 0:03:16.3]}
21. Rxf8+ {[%clk 0:02:10.9]} 21... Kxf8 {[%clk 0:03:16.2]} 22. Rc1 {[%clk
0:02:02.7]} 22... Bf5 {[%clk 0:03:00.9]} 23. Rxc7 {[%clk 0:01:57.1]} 23... Rc8
{[%clk 0:02:58.8]} 24. Qc3 {[%clk 0:01:49]} 24... Rxc7 {[%clk 0:02:55.1]} 25.
Qxc7 {[%clk 0:01:48.9]} 25... Be4 {[%clk 0:02:53]} 26. Qc8+ {[%clk 0:01:31.7]}
26... Ke7 {[%clk 0:02:48.9]} 27. Qe6+ {[%clk 0:01:27.1]} 27... Qxe6 {[%clk
0:02:47.2]} 28. dxe6 {[%clk 0:01:27]} 28... Kxe6 {[%clk 0:02:44.8]} 29. a4
{[%clk 0:01:07.1]} 29... bxa4 {[%clk 0:02:40.4]} 30. Bxa6 {[%clk 0:01:06.1]}
30... Bd3 {[%clk 0:02:38.1]} 31. Bc8+ {[%clk 0:01:01]} 31... Kf6 {[%clk
0:02:35]} 32. Bd4 {[%clk 0:00:57.2]} 32... Bf5 {[%clk 0:02:27.2]} 33. Bb7 {[%clk
0:00:51.1]} 33... Ke7 {[%clk 0:02:21.8]} 34. Ba6 {[%clk 0:00:46]} 34... Nd3
{[%clk 0:02:08.3]} 35. Bb5 {[%clk 0:00:38.9]} 35... Nc5 {[%clk 0:01:58]} 36.
Bxg7 {[%clk 0:00:35.7]} 36... Kf7 {[%clk 0:01:54.1]} 37. Bc3 {[%clk 0:00:35.1]}
37... Bd3 {[%clk 0:01:44.6]} 38. Bc6 {[%clk 0:00:31.1]} 38... Ke6 {[%clk
0:01:38.3]} 39. Be8 {[%clk 0:00:29.4]} 39... h6 {[%clk 0:01:36]} 40. Bg7 {[%clk
0:00:26.6]} 40... Ne4 {[%clk 0:01:30.5]} 41. Bxh6 {[%clk 0:00:24.7]} 41... Nxf2
{[%clk 0:01:28.8]} 42. Be3 {[%clk 0:00:22.6]} 42... Nd1 {[%clk 0:01:25.5]} 43.
Bd2 {[%clk 0:00:20.3]} 43... Nf2 {[%clk 0:01:21.6]} 44. Bxa4 {[%clk 0:00:18.2]}
44... Ne4 {[%clk 0:01:20]} 45. Bb4 {[%clk 0:00:16.6]} 45... Nc5 {[%clk
0:01:15.7]} 46. Be8 {[%clk 0:00:12]} 46... Nb3 {[%clk 0:01:07.5]} 47. Ba4 {[%clk
0:00:08.4]} 47... Nc5 {[%clk 0:01:06.1]} 48. Bxc5 {[%clk 0:00:06.8]} 48... dxc5
{[%clk 0:01:04.8]} 49. Bb3+ {[%clk 0:00:05.9]} 49... c4 {[%clk 0:01:03.4]} 50.
Ba4 {[%clk 0:00:04.9]} 50... Ke5 {[%clk 0:01:00.4]} 51. Kg3 {[%clk 0:00:04.8]}
51... Kd4 {[%clk 0:00:59.5]} 52. Kf4 {[%clk 0:00:04.1]} 52... Bf1 {[%clk
0:00:57]} 53. g3 {[%clk 0:00:03.3]} 53... Bxh3 {[%clk 0:00:55.8]} 54. g4 {[%clk
0:00:02.4]} 54... Kc5 {[%clk 0:00:51]} 55. g5 {[%clk 0:00:01.1]} 55... Kb4
{[%clk 0:00:48.8]} 56. Bd1 {[%clk 0:00:00.8]} 56... Be6 {[%clk 0:00:43.8]} 57.
g6 {[%clk 0:00:00.7]} 57... Kc5 {[%clk 0:00:40.9]} 58. g7 {[%clk 0:00:00.6]}
58... Kb5 {[%clk 0:00:38.5]} 59. Kg5 {[%clk 0:00:00.5]} 59... Bd5 {[%clk
0:00:35.6]} 60. Kf6 {[%clk 0:00:00.4]} 60... Ka5 {[%clk 0:00:32.4]} 61. Ke7
{[%clk 0:00:00.3]} 61... Kb5 {[%clk 0:00:30.7]} 62. Kf8 {[%clk 0:00:00.2]} 62...
Kb6 {[%clk 0:00:28.5]} 63. g8=Q {[%clk 0:00:00.1]} 63... Bxg8 {[%clk 0:00:26.9]}
0-1